[Event "FIDE WCCC Open-12 2024"]
[Site "Montesilvano"]
[Date "2024.11.18"]
[Round "3.48"]
[White "Chia, Yu Zhe Ashton"]
[Black "Hallmundarson, Birkir"]
[Result "1-0"]
[ECO "B31"]
[WhiteElo "2252"]
[BlackElo "1914"]
[PlyCount "34"]
[EventDate "2024.11.18"]
[EventType "swiss"]
[EventCountry "ITA"]
[TimeControl "5400+30"]

1. e4 {[%emt 0:00:02]} c5 {[%emt 0:00:03]} 2. Nf3 {[%emt 0:00:09]} Nc6 {[%emt 0:00:05]} 3. Bb5 {[%emt 0:00:04]} g6 {[%emt 0:00:14]} 4. O-O {[%emt 0:03:54]} Bg7 {[%emt 0:00:10]} 5. c3 {[%emt 0:03:46]} d5 {[%emt 0:07:55]} 6. Qa4 {[%emt 0:01:50]} Qd6 {[%emt 0:20:04]} 7. exd5 {[%emt 0:20:00]} Qxd5 {[%emt 0:00:02]} 8. d4 {[%emt 0:00:14]} cxd4 {[%emt 0:08:08]} 9. cxd4 {[%emt 0:00:09]} Bd7 {[%emt 0:00:28]} 10. Nc3 {[%emt 0:00:06]} Qd6 {[%emt 0:00:10]} 11. d5 {[%emt 0:06:09]} Bxc3 {[%emt 0:11:42]} 12. bxc3 {[%emt 0:03:18]} Qxd5 {[%emt 0:00:59]} 13. Bb2 {[%emt 0:01:44]} Nf6 {[%emt 0:03:52]} 14. c4 {[%emt 0:05:46]} Qf5 {[%emt 0:00:48]} 15. Qa3 {[%emt 0:16:07]} O-O {[%emt 0:17:12]} 16. Rad1 {[%emt 0:09:20]} Rfe8 {[%emt 0:16:52]} 17. Rfe1 {[%emt 0:01:46]} Ne4 {[%emt 0:10:16]} 1-0

[Event "FIDE WCCC Open-12 2024"]
[Site "Montesilvano"]
[Date "2024.11.18"]
[Round "3.49"]
[White "Chen, Jun-Wei"]
[Black "Farzaleev, Daniyar"]
[Result "0-1"]
[ECO "B31"]
[WhiteElo "1907"]
[BlackElo "1622"]
[PlyCount "110"]
[EventDate "2024.11.18"]
[EventType "swiss"]
[EventCountry "ITA"]
[TimeControl "5400+30"]

1. e4 {[%emt 0:00:03]} c5 {[%emt 0:00:06]} 2. Nf3 {[%emt 0:00:06]} Nc6 {[%emt 0:00:04]} 3. Bb5 {[%emt 0:00:11]} g6 {[%emt 0:00:05]} 4. Bxc6 {[%emt 0:00:14]} dxc6 {[%emt 0:00:03]} 5. d3 {[%emt 0:00:24]} Bg7 {[%emt 0:00:03]} 6. h3 {[%emt 0:00:20]} Nf6 {[%emt 0:00:04]} 7. O-O {[%emt 0:01:37]} O-O {[%emt 0:00:03]} 8. Qe2 {[%emt 0:02:00]} Qc7 {[%emt 0:00:53]} 9. Nc3 {[%emt 0:01:14]} b6 {[%emt 0:02:05]} 10. Be3 {[%emt 0:00:44]} Ba6 {[%emt 0:01:26]} 11. a4 {[%emt 0:09:16]} Rfd8 {[%emt 0:02:10]} 12. Rfd1 {[%emt 0:02:38]} Nh5 {[%emt 0:01:27]} 13. g3 {[%emt 0:02:41]} Bc8 {[%emt 0:05:14]} 14. Kg2 {[%emt 0:01:50]} Qd7 {[%emt 0:01:28]} 15. g4 {[%emt 0:08:15]} Nf6 {[%emt 0:00:42]} 16. Rh1 {[%emt 0:03:53]} h5 {[%emt 0:05:16]} 17. g5 {[%emt 0:02:53]} Ne8 {[%emt 0:00:11]} 18. Nh4 {[%emt 0:01:50]} e5 {[%emt 0:03:41]} 19. a5 {[%emt 0:01:37]} Nc7 {[%emt 0:02:18]} 20. Qf3 {[%emt 0:03:14]} Ba6 {[%emt 0:01:53]} 21. b3 {[%emt 0:01:23]} Ne6 {[%emt 0:00:14]} 22. axb6 {[%emt 0:08:11]} axb6 {[%emt 0:00:06]} 23. Ne2 {[%emt 0:04:15]} Qe7 {[%emt 0:02:23]} 24. Qg3 {[%emt 0:00:19]} Nf4+ {[%emt 0:00:06]} 25. Nxf4 {[%emt 0:00:25]} exf4 {[%emt 0:00:02]} 26. Bxf4 {[%emt 0:00:01]} Bxa1 {[%emt 0:00:07]} 27. Rxa1 {[%emt 0:00:02]} Bb7 {[%emt 0:00:26]} 28. Be5 {[%emt 0:01:14]} Rxa1 {[%emt 0:01:59]} 29. Bxa1 {[%emt 0:00:02]} Ra8 {[%emt 0:00:08]} 30. Bf6 {[%emt 0:00:34]} Qe6 {[%emt 0:00:55]} 31. Qc7 {[%emt 0:01:35]} Qc8 {[%emt 0:01:28]} 32. Qe7 {[%emt 0:00:52]} Ba6 {[%emt 0:03:37]} 33. f4 {[%emt 0:01:22]} Qb7 {[%emt 0:01:56]} 34. f5 {[%emt 0:03:28]} Qxe7 {[%emt 0:01:16]} 35. Bxe7 {[%emt 0:00:01]} Bc8 {[%emt 0:00:36]} 36. Kf3 {[%emt 0:01:45]} Ra2 {[%emt 0:01:03]} 37. Kf4 {[%emt 0:05:19]} Rxc2 {[%emt 0:00:39]} 38. Nf3 {[%emt 0:02:39]} gxf5 {[%emt 0:02:40]} 39. exf5 {[%emt 0:00:04]} Rf2 {[%emt 0:00:04]} 40. f6 {[%emt 0:01:48]} Be6 {[%emt 0:05:02]} 41. Kg3 {[%emt 0:00:37]} Re2 {[%emt 0:02:24]} 42. Kf4 {[%emt 0:01:03]} Bxb3 {[%emt 0:01:18]} 43. Ne5 {[%emt 0:02:35]} Be6 {[%emt 0:05:09]} 44. h4 {[%emt 0:02:35]} Rh2 {[%emt 0:04:01]} 45. g6 {[%emt 0:05:09]} fxg6 {[%emt 0:01:44]} 46. Nxg6 {[%emt 0:01:10]} Bf7 {[%emt 0:00:11]} 47. Ne5 {[%emt 0:00:27]} Rxh4+ {[%emt 0:00:14]} 48. Kg5 {[%emt 0:00:05]} Rd4 {[%emt 0:00:55]} 49. Nxc6 {[%emt 0:03:21]} Rxd3 {[%emt 0:00:21]} 50. Ne5 {[%emt 0:01:26]} Rd4 {[%emt 0:01:47]} 51. Nf3 {[%emt 0:02:37]} Rg4+ {[%emt 0:00:56]} 52. Kf5 {[%emt 0:00:06]} Ra4 {[%emt 0:00:06]} 53. Ne5 {[%emt 0:01:04]} c4 {[%emt 0:03:31]} 54. Ke4 {[%emt 0:05:15]} b5 {[%emt 0:04:19]} 55. Ke3 {[%emt 0:02:07]} b4 {[%emt 0:01:11]} 0-1

[Event "FIDE WCCC Open-12 2024"]
[Site "Montesilvano"]
[Date "2024.11.18"]
[Round "3.50"]
[White "Zhan, Jayden Zihan"]
[Black "Tona, Leonardo"]
[Result "0-1"]
[ECO "B12"]
[WhiteElo "1670"]
[BlackElo "1906"]
[PlyCount "92"]
[EventDate "2024.11.18"]
[EventType "swiss"]
[EventCountry "ITA"]
[TimeControl "5400+30"]

1. e4 {[%emt 0:00:03]} c6 {[%emt 0:00:05]} 2. d4 {[%emt 0:00:04]} d5 {[%emt 0:00:02]} 3. e5 {[%emt 0:00:10]} Bf5 {[%emt 0:00:06]} 4. Nf3 {[%emt 0:00:06]} e6 {[%emt 0:00:06]} 5. Be2 {[%emt 0:00:08]} Ne7 {[%emt 0:00:29]} 6. O-O {[%emt 0:00:16]} Ng6 {[%emt 0:00:06]} 7. Nbd2 {[%emt 0:00:58]} f6 {[%emt 0:01:08]} 8. exf6 {[%emt 0:04:18]} Qxf6 {[%emt 0:00:07]} 9. Nb3 {[%emt 0:01:20]} Bd6 {[%emt 0:03:49]} 10. Re1 {[%emt 0:09:05]} O-O {[%emt 0:04:10]} 11. Bg5 {[%emt 0:03:56]} Qf7 {[%emt 0:00:57]} 12. Bd3 {[%emt 0:07:08]} h6 {[%emt 0:02:25]} 13. Be3 {[%emt 0:02:41]} Nd7 {[%emt 0:02:59]} 14. Qd2 {[%emt 0:03:14]} Bxd3 {[%emt 0:02:14]} 15. Qxd3 {[%emt 0:00:32]} Bf4 {[%emt 0:01:12]} 16. c4 {[%emt 0:06:40]} Nb6 {[%emt 0:03:18]} 17. cxd5 {[%emt 0:02:09]} exd5 {[%emt 0:11:47]} 18. Nc5 {[%emt 0:06:01]} Nc4 {[%emt 0:06:29]} 19. b3 {[%emt 0:04:47]} Nd6 {[%emt 0:02:12]} 20. Bd2 {[%emt 0:11:41]} Bxd2 {[%emt 0:00:18]} 21. Qxd2 {[%emt 0:00:15]} b6 {[%emt 0:01:00]} 22. Nd3 {[%emt 0:04:26]} Ne4 {[%emt 0:00:59]} 23. Qc2 {[%emt 0:02:05]} Rac8 {[%emt 0:00:43]} 24. Rf1 {[%emt 0:04:47]} Qe6 {[%emt 0:09:14]} 25. Nde5 {[%emt 0:09:14]} c5 {[%emt 0:07:54]} 26. Nxg6 {[%emt 0:05:31]} Qxg6 {[%emt 0:01:44]} 27. Ne5 {[%emt 0:02:10]} Qg5 {[%emt 0:04:08]} 28. Qd3 {[%emt 0:02:27]} Rf5 {[%emt 0:05:22]} 29. Nf3 {[%emt 0:03:15]} Qf4 {[%emt 0:04:08]} 30. Rac1 {[%emt 0:02:04]} Rcf8 {[%emt 0:02:43]} 31. dxc5 {[%emt 0:02:28]} bxc5 {[%emt 0:00:06]} 32. Rcd1 {[%emt 0:00:58]} d4 {[%emt 0:00:44]} 33. b4 {[%emt 0:00:21]} Nc3 {[%emt 0:00:51]} 34. Rde1 {[%emt 0:00:45]} cxb4 {[%emt 0:03:25]} 35. Nxd4 {[%emt 0:00:48]} Rd5 {[%emt 0:00:28]} 36. Qe3 {[%emt 0:00:44]} Qxd4 {[%emt 0:00:26]} 37. Qe6+ {[%emt 0:00:12]} Kh8 {[%emt 0:00:23]} 38. Qe7 {[%emt 0:00:31]} Rdf5 {[%emt 0:00:24]} 39. Qe3 {[%emt 0:01:08]} Qxe3 {[%emt 0:00:17]} 40. Rxe3 {[%emt 0:00:04]} Nxa2 {[%emt 0:00:11]} 41. Re7 {[%emt 0:00:13]} a5 {[%emt 0:00:17]} 42. Rb7 {[%emt 0:00:14]} a4 {[%emt 0:00:15]} 43. Ra7 {[%emt 0:00:14]} a3 {[%emt 0:00:24]} 44. h3 {[%emt 0:00:29]} Nc3 {[%emt 0:00:19]} 45. f3 {[%emt 0:00:19]} a2 {[%emt 0:00:27]} 46. Rb7 {[%emt 0:01:02]} Rb5 {[%emt 0:00:22]} 0-1

[Event "FIDE WCCC Open-12 2024"]
[Site "Montesilvano"]
[Date "2024.11.18"]
[Round "3.52"]
[White "Vinales Gonzalez, Enzo Mathias"]
[Black "Sharafutdinov, Timur"]
[Result "1-0"]
[ECO "C52"]
[WhiteElo "1903"]
[BlackElo "1925"]
[PlyCount "61"]
[EventDate "2024.11.18"]
[EventType "swiss"]
[EventCountry "ITA"]
[TimeControl "5400+30"]

1. e4 {[%emt 0:00:04]} e5 {[%emt 0:00:05]} 2. Nf3 {[%emt 0:00:05]} Nc6 {[%emt 0:00:08]} 3. Bc4 {[%emt 0:00:22]} Bc5 {[%emt 0:00:07]} 4. b4 {[%emt 0:00:06]} Bxb4 {[%emt 0:00:35]} 5. c3 {[%emt 0:00:06]} Ba5 {[%emt 0:00:23]} 6. d4 {[%emt 0:00:07]} exd4 {[%emt 0:00:34]} 7. O-O {[%emt 0:00:08]} Nf6 {[%emt 0:02:11]} 8. Qb3 {[%emt 0:04:44]} O-O {[%emt 0:01:59]} 9. e5 {[%emt 0:00:26]} d5 {[%emt 0:02:56]} 10. Bd3 {[%emt 0:00:11]} Nd7 {[%emt 0:03:35]} 11. cxd4 {[%emt 0:00:25]} Ne7 {[%emt 0:08:16]} 12. Ba3 {[%emt 0:03:46]} c6 {[%emt 0:04:23]} 13. Nc3 {[%emt 0:05:21]} Re8 {[%emt 0:05:43]} 14. Ne2 {[%emt 0:00:24]} Qb6 {[%emt 0:06:28]} 15. Qd1 {[%emt 0:01:25]} c5 {[%emt 0:03:27]} 16. Rb1 {[%emt 1:20:50]} Qc7 {[%emt 0:04:53]} 17. Rc1 {[%emt 0:00:00]} c4 {[%emt 0:00:29]} 18. Nf4 {[%emt 0:00:00]} Qc6 {[%emt 0:06:42]} 19. Bd6 {[%emt 0:00:00]} Ng6 {[%emt 0:04:02]} 20. Nxd5 {[%emt 0:00:00]} Qxd5 {[%emt 0:04:50]} 21. Bxc4 {[%emt 0:00:00]} Qe4 {[%emt 0:00:49]} 22. Bxf7+ {[%emt 0:00:00]} Kh8 {[%emt 0:01:57]} 23. Bxe8 {[%emt 0:00:00]} Nf4 {[%emt 0:02:02]} 24. Qc2 {[%emt 0:00:00]} Qe2 {[%emt 0:02:46]} 25. Qxc8 {[%emt 0:00:00]} Rxc8 {[%emt 0:01:26]} 26. Rxc8 {[%emt 0:00:00]} g6 {[%emt 0:01:03]} 27. Bxd7+ {[%emt 0:00:00]} Kg7 {[%emt 0:00:18]} 28. Bf8+ {[%emt 0:00:00]} Kf7 {[%emt 0:00:30]} 29. Ng5+ {[%emt 0:00:00]} Kg8 {[%emt 0:00:13]} 30. Bh6+ {[%emt 0:00:00]} Bd8 {[%emt 0:00:39]} 31. Rxd8# {[%emt 0:00:00]} 1-0

[Event "FIDE WCCC Open-12 2024"]
[Site "Montesilvano"]
[Date "2024.11.18"]
[Round "3.53"]
[White "Shirinov, Yashar"]
[Black "Ivarlac, Vladislav"]
[Result "1-0"]
[ECO "D38"]
[WhiteElo "1642"]
[BlackElo "1867"]
[PlyCount "155"]
[EventDate "2024.11.18"]
[EventType "swiss"]
[EventCountry "ITA"]
[TimeControl "5400+30"]

1. d4 {[%emt 0:00:16]} Nf6 {[%emt 0:00:19]} 2. c4 {[%emt 0:00:06]} e6 {[%emt 0:00:08]} 3. Nc3 {[%emt 0:00:39]} Bb4 {[%emt 0:00:06]} 4. Qc2 {[%emt 0:00:07]} d5 {[%emt 0:00:40]} 5. Nf3 {[%emt 0:00:33]} O-O {[%emt 0:01:03]} 6. a3 {[%emt 0:00:11]} Be7 {[%emt 0:00:06]} 7. Bg5 {[%emt 0:00:22]} c6 {[%emt 0:01:05]} 8. cxd5 {[%emt 0:02:31]} exd5 {[%emt 0:00:45]} 9. e3 {[%emt 0:00:29]} h6 {[%emt 0:00:23]} 10. Bf4 {[%emt 0:00:55]} Nbd7 {[%emt 0:01:28]} 11. Bd3 {[%emt 0:01:30]} Re8 {[%emt 0:00:55]} 12. O-O {[%emt 0:01:11]} Nh5 {[%emt 0:01:34]} 13. Nxd5 {[%emt 0:00:34]} Nxf4 {[%emt 0:03:07]} 14. Nxf4 {[%emt 0:00:05]} Bd6 {[%emt 0:01:17]} 15. Nh5 {[%emt 0:00:53]} Nf8 {[%emt 0:03:22]} 16. Ng3 {[%emt 0:05:11]} Bg4 {[%emt 0:05:37]} 17. Nd2 {[%emt 0:03:53]} g6 {[%emt 0:06:42]} 18. Nde4 {[%emt 0:08:50]} Bc7 {[%emt 0:03:11]} 19. Qb3 {[%emt 0:05:29]} Rb8 {[%emt 0:03:13]} 20. Rfc1 {[%emt 0:06:52]} h5 {[%emt 0:03:23]} 21. Nf1 {[%emt 0:00:40]} Be6 {[%emt 0:02:48]} 22. Qc3 {[%emt 0:03:14]} Bd5 {[%emt 0:03:37]} 23. Nc5 {[%emt 0:03:04]} Qg5 {[%emt 0:03:31]} 24. e4 {[%emt 0:10:35]} Be6 {[%emt 0:00:51]} 25. e5 {[%emt 0:01:54]} Nd7 {[%emt 0:07:09]} 26. Nxe6 {[%emt 0:03:05]} Rxe6 {[%emt 0:02:35]} 27. Ng3 {[%emt 0:00:35]} Nb6 {[%emt 0:06:20]} 28. Ne4 {[%emt 0:03:56]} Qf4 {[%emt 0:03:06]} 29. g3 {[%emt 0:02:02]} Qh6 {[%emt 0:00:46]} 30. Bc4 {[%emt 0:00:46]} Re7 {[%emt 0:03:04]} 31. Bb3 {[%emt 0:02:04]} Rd8 {[%emt 0:02:28]} 32. Rd1 {[%emt 0:01:15]} Qf8 {[%emt 0:02:14]} 33. f4 {[%emt 0:01:10]} Nc8 {[%emt 0:01:39]} 34. f5 {[%emt 0:00:35]} Kh8 {[%emt 0:01:10]} 35. f6 {[%emt 0:04:19]} Ree8 {[%emt 0:01:02]} 36. Ng5 {[%emt 0:04:10]} Rd7 {[%emt 0:02:33]} 37. Qc4 {[%emt 0:06:38]} Nb6 {[%emt 0:02:03]} 38. Qc2 {[%emt 0:02:17]} Nd5 {[%emt 0:00:46]} 39. e6 {[%emt 0:04:10]} fxe6 {[%emt 0:00:13]} 40. Qxg6 {[%emt 0:00:27]} Nxf6 {[%emt 0:01:06]} 41. Rf1 {[%emt 0:01:25]} Bb6 {[%emt 0:00:53]} 42. Rad1 {[%emt 0:01:52]} Rxd4 {[%emt 0:00:54]} 43. Rxd4 {[%emt 0:00:05]} Bxd4+ {[%emt 0:00:04]} 44. Kg2 {[%emt 0:00:05]} Qg7 {[%emt 0:04:36]} 45. Rxf6 {[%emt 0:00:18]} Qxg6 {[%emt 0:01:12]} 46. Rxg6 {[%emt 0:00:06]} Bxb2 {[%emt 0:01:02]} 47. Bxe6 {[%emt 0:00:51]} Bg7 {[%emt 0:00:58]} 48. Kf3 {[%emt 0:01:31]} Rf8+ {[%emt 0:00:25]} 49. Ke3 {[%emt 0:01:24]} Rf6 {[%emt 0:00:19]} 50. Nf7+ {[%emt 0:00:31]} Kh7 {[%emt 0:00:15]} 51. Rxf6 {[%emt 0:00:08]} Bxf6 {[%emt 0:00:06]} 52. Nd6 {[%emt 0:00:07]} Be7 {[%emt 0:00:30]} 53. Nxb7 {[%emt 0:00:23]} Bxa3 {[%emt 0:00:10]} 54. Kf4 {[%emt 0:00:15]} Kh6 {[%emt 0:00:11]} 55. h3 {[%emt 0:00:42]} Bc1+ {[%emt 0:00:26]} 56. Ke5 {[%emt 0:00:08]} h4 {[%emt 0:00:30]} 57. g4 {[%emt 0:00:09]} Kg5 {[%emt 0:00:09]} 58. Na5 {[%emt 0:00:25]} c5 {[%emt 0:00:15]} 59. Nb3 {[%emt 0:00:06]} Ba3 {[%emt 0:00:25]} 60. Nd2 {[%emt 0:00:07]} Bb2+ {[%emt 0:01:20]} 61. Ke4 {[%emt 0:00:27]} Bf6 {[%emt 0:00:37]} 62. Bf7 {[%emt 0:00:48]} a5 {[%emt 0:00:29]} 63. Nf3+ {[%emt 0:00:10]} Kh6 {[%emt 0:00:12]} 64. Kf5 {[%emt 0:00:06]} Kg7 {[%emt 0:00:53]} 65. Bc4 {[%emt 0:00:09]} a4 {[%emt 0:01:38]} 66. g5 {[%emt 0:00:04]} Bc3 {[%emt 0:00:11]} 67. Nxh4 {[%emt 0:00:05]} a3 {[%emt 0:00:10]} 68. Nf3 {[%emt 0:00:20]} Bb2 {[%emt 0:00:16]} 69. h4 {[%emt 0:00:06]} Bc3 {[%emt 0:00:07]} 70. h5 {[%emt 0:00:04]} Bb2 {[%emt 0:00:14]} 71. h6+ {[%emt 0:00:32]} Kh8 {[%emt 0:00:06]} 72. Ne5 {[%emt 0:00:37]} Bc3 {[%emt 0:00:10]} 73. Nf7+ {[%emt 0:00:05]} Kg8 {[%emt 0:00:05]} 74. Kg6 {[%emt 0:00:18]} a2 {[%emt 0:00:15]} 75. Bxa2 {[%emt 0:00:06]} c4 {[%emt 0:00:02]} 76. Bxc4 {[%emt 0:00:08]} Bg7 {[%emt 0:00:06]} 77. Nh8+ {[%emt 0:00:06]} Kxh8 {[%emt 0:00:08]} 78. hxg7# {[%emt 0:00:03]} 1-0

[Event "FIDE WCCC Open-12 2024"]
[Site "Montesilvano"]
[Date "2024.11.18"]
[Round "3.54"]
[White "Mintz, Nathan"]
[Black "Ritzerveld, Noah"]
[Result "0-1"]
[ECO "A21"]
[WhiteElo "1633"]
[BlackElo "2285"]
[PlyCount "134"]
[EventDate "2024.11.18"]
[EventType "swiss"]
[EventCountry "ITA"]
[TimeControl "5400+30"]

1. c4 {[%emt 0:00:04]} e5 {[%emt 0:00:03]} 2. Nc3 {[%emt 0:00:11]} f5 {[%emt 0:00:27]} 3. g3 {[%emt 0:00:07]} Be7 {[%emt 0:00:12]} 4. Bg2 {[%emt 0:00:10]} Nf6 {[%emt 0:00:07]} 5. d3 {[%emt 0:00:27]} a5 {[%emt 0:00:53]} 6. Nf3 {[%emt 0:00:23]} d6 {[%emt 0:00:17]} 7. O-O {[%emt 0:00:38]} O-O {[%emt 0:01:10]} 8. Qc2 {[%emt 0:04:25]} Qe8 {[%emt 0:02:06]} 9. Bg5 {[%emt 0:06:04]} h6 {[%emt 0:03:58]} 10. Bxf6 {[%emt 0:02:01]} Bxf6 {[%emt 0:00:26]} 11. Nd5 {[%emt 0:02:43]} Bd8 {[%emt 0:01:21]} 12. c5 {[%emt 0:14:59]} Nc6 {[%emt 0:08:49]} 13. Nd2 {[%emt 0:06:18]} Nd4 {[%emt 0:05:58]} 14. Qd1 {[%emt 0:03:05]} dxc5 {[%emt 0:05:05]} 15. e3 {[%emt 0:03:54]} Ne6 {[%emt 0:01:39]} 16. Nc4 {[%emt 0:03:30]} c6 {[%emt 0:02:29]} 17. Ndb6 {[%emt 0:03:15]} Bxb6 {[%emt 0:00:45]} 18. Nxb6 {[%emt 0:00:22]} Ra6 {[%emt 0:03:54]} 19. Qb3 {[%emt 0:02:16]} Kh8 {[%emt 0:03:16]} 20. Nc4 {[%emt 0:05:09]} Ng5 {[%emt 0:02:28]} 21. Rfe1 {[%emt 0:09:30]} Nf7 {[%emt 0:11:29]} 22. Rad1 {[%emt 0:03:33]} b5 {[%emt 0:03:26]} 23. Nd2 {[%emt 0:01:17]} Be6 {[%emt 0:00:28]} 24. Qc3 {[%emt 0:01:27]} Qe7 {[%emt 0:01:10]} 25. Nf3 {[%emt 0:01:56]} Bxa2 {[%emt 0:01:39]} 26. Nh4 {[%emt 0:01:34]} Qf6 {[%emt 0:06:29]} 27. Qxc5 {[%emt 0:02:16]} Kg8 {[%emt 0:04:40]} 28. e4 {[%emt 0:02:03]} f4 {[%emt 0:02:05]} 29. Nf5 {[%emt 0:00:58]} Be6 {[%emt 0:01:33]} 30. Ne7+ {[%emt 0:03:01]} Kh7 {[%emt 0:01:02]} 31. d4 {[%emt 0:02:27]} Re8 {[%emt 0:02:30]} 32. Nf5 {[%emt 0:02:35]} Bb3 {[%emt 0:05:20]} 33. Rd3 {[%emt 0:01:42]} Bc4 {[%emt 0:00:29]} 34. Ra3 {[%emt 0:02:37]} exd4 {[%emt 0:02:31]} 35. gxf4 {[%emt 0:02:43]} d3 {[%emt 0:01:17]} 36. Qe3 {[%emt 0:02:50]} g6 {[%emt 0:03:47]} 37. Nd4 {[%emt 0:01:02]} c5 {[%emt 0:00:39]} 38. Nf3 {[%emt 0:00:37]} Qxb2 {[%emt 0:00:56]} 39. Raa1 {[%emt 0:01:00]} Rd6 {[%emt 0:02:14]} 40. Nd2 {[%emt 0:00:53]} a4 {[%emt 0:02:46]} 41. e5 {[%emt 0:00:45]} Rdd8 {[%emt 0:00:32]} 42. Be4 {[%emt 0:01:21]} Be6 {[%emt 0:01:20]} 43. Rab1 {[%emt 0:01:25]} Qd4 {[%emt 0:00:39]} 44. Qg3 {[%emt 0:00:22]} Rg8 {[%emt 0:00:28]} 45. h4 {[%emt 0:00:51]} Kh8 {[%emt 0:01:57]} 46. Re3 {[%emt 0:00:37]} c4 {[%emt 0:00:35]} 47. Bxg6 {[%emt 0:00:25]} Rxg6 {[%emt 0:00:26]} 48. Qxg6 {[%emt 0:00:13]} Rg8 {[%emt 0:00:05]} 49. Qxg8+ {[%emt 0:00:19]} Kxg8 {[%emt 0:00:08]} 50. Rg3+ {[%emt 0:00:17]} Kf8 {[%emt 0:00:36]} 51. Rxb5 {[%emt 0:00:20]} c3 {[%emt 0:00:10]} 52. Nf3 {[%emt 0:00:33]} Qd8 {[%emt 0:01:19]} 53. Kf1 {[%emt 0:01:26]} d2 {[%emt 0:00:06]} 54. Rb1 {[%emt 0:00:48]} d1=Q+ {[%emt 0:00:06]} 55. Rxd1 {[%emt 0:00:26]} Qxd1+ {[%emt 0:00:07]} 56. Kg2 {[%emt 0:00:13]} Bd5 {[%emt 0:00:03]} 57. h5 {[%emt 0:00:34]} Qxf3+ {[%emt 0:00:14]} 58. Rxf3 {[%emt 0:00:12]} c2 {[%emt 0:00:07]} 59. Kg3 {[%emt 0:00:26]} Bxf3 {[%emt 0:00:07]} 60. Kxf3 {[%emt 0:00:10]} c1=Q {[%emt 0:00:06]} 61. Kg4 {[%emt 0:00:23]} Qc2 {[%emt 0:00:17]} 62. f5 {[%emt 0:00:15]} Qe4+ {[%emt 0:00:04]} 63. Kg3 {[%emt 0:00:18]} Ng5 {[%emt 0:00:19]} 64. f4 {[%emt 0:00:27]} Qf3+ {[%emt 0:00:03]} 65. Kh2 {[%emt 0:00:17]} Qf2+ {[%emt 0:00:04]} 66. Kh1 {[%emt 0:00:18]} Ne4 {[%emt 0:00:05]} 67. e6 {[%emt 0:00:11]} Ng3# {[%emt 0:00:06]} 0-1

[Event "FIDE WCCC Open-12 2024"]
[Site "Montesilvano"]
[Date "2024.11.18"]
[Round "3.56"]
[White "Saminskij, Jan"]
[Black "Boiko, Nazar"]
[Result "1-0"]
[ECO "C02"]
[WhiteElo "2202"]
[BlackElo "1614"]
[PlyCount "47"]
[EventDate "2024.11.18"]
[EventType "swiss"]
[EventCountry "ITA"]
[TimeControl "5400+30"]

1. e4 {[%emt 0:00:21]} e6 {[%emt 0:00:11]} 2. d4 {[%emt 0:02:22]} d5 {[%emt 0:00:05]} 3. e5 {[%emt 0:00:12]} c5 {[%emt 0:00:07]} 4. c3 {[%emt 0:00:20]} Qb6 {[%emt 0:00:05]} 5. Nf3 {[%emt 0:02:09]} Nc6 {[%emt 0:00:07]} 6. Be2 {[%emt 0:00:08]} cxd4 {[%emt 0:00:13]} 7. cxd4 {[%emt 0:00:08]} Nh6 {[%emt 0:00:04]} 8. Bxh6 {[%emt 0:10:02]} Qxb2 {[%emt 0:00:10]} 9. Nbd2 {[%emt 0:00:01]} gxh6 {[%emt 0:00:19]} 10. O-O {[%emt 0:00:05]} Bg7 {[%emt 0:15:39]} 11. Nb3 {[%emt 0:05:25]} Qa3 {[%emt 0:04:09]} 12. Bd3 {[%emt 0:03:02]} Qe7 {[%emt 0:08:01]} 13. Rc1 {[%emt 0:02:22]} O-O {[%emt 0:14:49]} 14. Re1 {[%emt 0:07:42]} f5 {[%emt 0:20:34]} 15. exf6 {[%emt 0:04:18]} Bxf6 {[%emt 0:00:52]} 16. Bb5 {[%emt 0:03:08]} Bd7 {[%emt 0:16:41]} 17. Bxc6 {[%emt 0:02:07]} bxc6 {[%emt 0:03:52]} 18. Nc5 {[%emt 0:00:12]} Rab8 {[%emt 0:03:28]} 19. Qd2 {[%emt 0:07:15]} Kg7 {[%emt 0:02:34]} 20. Rc3 {[%emt 0:00:53]} Rfe8 {[%emt 0:00:47]} 21. Qe2 {[%emt 0:03:03]} Rf8 {[%emt 0:06:53]} 22. Ne5 {[%emt 0:00:26]} Bxe5 {[%emt 0:00:35]} 23. Qxe5+ {[%emt 0:00:05]} Rf6 {[%emt 0:00:26]} 24. Qxb8 {[%emt 0:00:09]} 1-0

[Event "FIDE WCCC Open-12 2024"]
[Site "Montesilvano"]
[Date "2024.11.18"]
[Round "3.57"]
[White "Stefanov, Stefan"]
[Black "Marchand, Calix"]
[Result "0-1"]
[ECO "E14"]
[WhiteElo "1478"]
[BlackElo "2027"]
[PlyCount "61"]
[EventDate "2024.11.18"]
[EventType "swiss"]
[EventCountry "ITA"]
[TimeControl "5400+30"]

1. d4 {[%emt 0:00:09]} Nf6 {[%emt 0:00:26]} 2. Nf3 {[%emt 0:00:06]} e6 {[%emt 0:00:49]} 3. c4 {[%emt 0:00:08]} Bb4+ {[%emt 0:00:06]} 4. Nbd2 {[%emt 0:00:13]} b6 {[%emt 0:01:18]} 5. e3 {[%emt 0:00:11]} Bb7 {[%emt 0:00:39]} 6. Be2 {[%emt 0:00:25]} O-O {[%emt 0:02:11]} 7. O-O {[%emt 0:00:35]} d5 {[%emt 0:01:53]} 8. a3 {[%emt 0:00:59]} Be7 {[%emt 0:01:41]} 9. b4 {[%emt 0:21:03]} Ne4 {[%emt 0:04:37]} 10. Bb2 {[%emt 0:06:18]} Nd7 {[%emt 0:09:24]} 11. Nxe4 {[%emt 0:01:47]} dxe4 {[%emt 0:00:06]} 12. Nd2 {[%emt 0:00:41]} c5 {[%emt 0:05:50]} 13. b5 {[%emt 0:12:15]} cxd4 {[%emt 0:01:14]} 14. Bxd4 {[%emt 0:02:07]} e5 {[%emt 0:02:37]} 15. Bc3 {[%emt 0:01:52]} f5 {[%emt 0:00:41]} 16. Qc2 {[%emt 0:06:15]} Qe8 {[%emt 0:02:06]} 17. Bb4 {[%emt 0:26:17]} Nc5 {[%emt 0:04:35]} 18. Bxc5 {[%emt 0:01:16]} Bxc5 {[%emt 0:02:25]} 19. Nb3 {[%emt 0:00:32]} Rc8 {[%emt 0:02:01]} 20. Nxc5 {[%emt 0:00:11]} Rxc5 {[%emt 0:00:02]} 21. Rad1 {[%emt 0:03:46]} f4 {[%emt 0:11:44]} 22. Rfe1 {[%emt 0:07:42]} Qe6 {[%emt 0:06:06]} 23. Bf1 {[%emt 0:03:45]} h5 {[%emt 0:02:21]} 24. Qd2 {[%emt 0:01:29]} Rf7 {[%emt 0:06:44]} 25. Qd8+ {[%emt 0:01:28]} Kh7 {[%emt 0:00:25]} 26. Qh4 {[%emt 0:01:18]} Qg6 {[%emt 0:01:01]} 27. g4 {[%emt 0:00:36]} Qxg4+ {[%emt 0:03:18]} 28. Qxg4 {[%emt 0:00:08]} hxg4 {[%emt 0:00:01]} 29. exf4 {[%emt 0:00:36]} exf4 {[%emt 0:00:20]} 30. Rd4 {[%emt 0:00:23]} Rh5 {[%emt 0:03:25]} 31. Bg2 {[%emt 0:01:29]} 0-1

[Event "FIDE WCCC Open-12 2024"]
[Site "Montesilvano"]
[Date "2024.11.18"]
[Round "3.58"]
[White "Son, Juwon"]
[Black "Su, Jayden Chenxuan"]
[Result "1/2-1/2"]
[ECO "C29"]
[WhiteElo "1448"]
[BlackElo "1700"]
[PlyCount "39"]
[EventDate "2024.11.18"]
[EventType "swiss"]
[EventCountry "ITA"]
[TimeControl "5400+30"]

1. e4 {[%emt 0:00:01]} e5 {[%emt 0:00:07]} 2. Nc3 {[%emt 0:00:02]} Nf6 {[%emt 0:00:08]} 3. f4 {[%emt 0:00:03]} d5 {[%emt 0:00:08]} 4. fxe5 {[%emt 0:00:09]} Nxe4 {[%emt 0:00:07]} 5. Nf3 {[%emt 0:00:11]} Bc5 {[%emt 0:00:17]} 6. d4 {[%emt 0:00:04]} Bb4 {[%emt 0:00:09]} 7. Bd2 {[%emt 0:00:08]} c5 {[%emt 0:00:30]} 8. Bd3 {[%emt 0:01:07]} Nxd2 {[%emt 0:00:13]} 9. Qxd2 {[%emt 0:00:48]} cxd4 {[%emt 0:00:19]} 10. Nxd4 {[%emt 0:01:15]} Nc6 {[%emt 0:00:35]} 11. Bb5 {[%emt 0:02:11]} Bd7 {[%emt 0:04:47]} 12. Nxc6 {[%emt 0:04:16]} bxc6 {[%emt 0:01:09]} 13. Be2 {[%emt 0:05:25]} Be6 {[%emt 0:01:29]} 14. a3 {[%emt 0:05:26]} Qa5 {[%emt 0:09:29]} 15. O-O {[%emt 0:12:06]} Bxc3 {[%emt 0:08:37]} 16. bxc3 {[%emt 0:06:58]} Qc7 {[%emt 0:02:17]} 17. Qf4 {[%emt 0:04:52]} O-O {[%emt 0:05:23]} 18. Rf3 {[%emt 0:09:41]} Qe7 {[%emt 0:07:38]} 19. Bd3 {[%emt 0:12:48]} h6 {[%emt 0:18:55]} 20. Rg3 {[%emt 0:07:36]} 1/2-1/2